[Event "*** Titled Tuesday Blitz"]
[Site "Chess.com"]
[Date "2020.10.27"]
[Round "2"]
[White "HrvojeZagreb"]
[Black "nrvisakh"]
[Result "0-1"]
[WhiteElo "2241"]
[BlackElo "2667"]
[TimeControl "180+1"]
[EndTime "10:16:19 PDT"]
[Termination "nrvisakh won by resignation"]

1. d4 {[%clk 0:03:00.9]} 1... Nf6 {[%clk 0:02:59.7]} 2. Bf4 {[%clk 0:03:00.1]}
2... g6 {[%clk 0:02:59.1]} 3. Nc3 {[%clk 0:03:00.3]} 3... d5 {[%clk 0:02:52]} 4.
e3 {[%clk 0:03:00.3]} 4... Bg7 {[%clk 0:02:51.9]} 5. h4 {[%clk 0:02:59.4]} 5...
h5 {[%clk 0:02:50.4]} 6. Nf3 {[%clk 0:02:58.8]} 6... O-O {[%clk 0:02:50.5]} 7.
Ne5 {[%clk 0:02:58.5]} 7... c5 {[%clk 0:02:44.8]} 8. Qd2 {[%clk 0:02:49.1]} 8...
Nc6 {[%clk 0:02:43.4]} 9. O-O-O {[%clk 0:02:47]} 9... Bf5 {[%clk 0:02:37.5]} 10.
a3 {[%clk 0:02:40.8]} 10... Rc8 {[%clk 0:02:36.3]} 11. Nxc6 {[%clk 0:02:23.2]}
11... Rxc6 {[%clk 0:02:35.4]} 12. f3 {[%clk 0:02:23.8]} 12... cxd4 {[%clk
0:02:31.1]} 13. exd4 {[%clk 0:02:23.4]} 13... Qa5 {[%clk 0:02:28.3]} 14. Bd3
{[%clk 0:01:42.9]} 14... Bxd3 {[%clk 0:02:25.4]} 15. Qxd3 {[%clk 0:01:42.7]}
15... Rfc8 {[%clk 0:02:25.1]} 16. Bd2 {[%clk 0:01:40.9]} 16... Nd7 {[%clk
0:02:10.4]} 17. g4 {[%clk 0:01:27.2]} 17... Nb6 {[%clk 0:02:10]} 18. gxh5 {[%clk
0:01:20.3]} 18... Nc4 {[%clk 0:02:09.9]} 19. hxg6 {[%clk 0:01:14.3]} 19... Nxd2
{[%clk 0:02:07.5]} 20. gxf7+ {[%clk 0:01:12.3]} 20... Kh8 {[%clk 0:01:54.7]} 21.
Kxd2 {[%clk 0:00:50.9]} 21... Rxc3 {[%clk 0:01:28.9]} 22. bxc3 {[%clk
0:00:42.3]} 22... Rxc3 {[%clk 0:01:29.8]} 23. Qxc3 {[%clk 0:00:07.1]} 23... Bh6+
{[%clk 0:01:29.2]} 24. Ke2 {[%clk 0:00:06.7]} 24... Qxc3 {[%clk 0:01:28.4]} 25.
Rd3 {[%clk 0:00:06.5]} 25... Qxc2+ {[%clk 0:01:28.3]} 26. Kf1 {[%clk 0:00:06.9]}
26... Qxd3+ {[%clk 0:01:28.2]} 27. Kg2 {[%clk 0:00:06.9]} 27... Qe2+ {[%clk
0:01:28.3]} 0-1

[Event "*** Titled Tuesday Blitz"]
[Site "Chess.com"]
[Date "2020.10.27"]
[Round "2"]
[White "Oleksandr_Bortnyk"]
[Black "davidkalashian"]
[Result "1-0"]
[WhiteElo "2908"]
[BlackElo "2589"]
[TimeControl "180+1"]
[EndTime "10:16:21 PDT"]
[Termination "Oleksandr_Bortnyk won by checkmate"]

1. e4 {[%clk 0:03:00.9]} 1... c6 {[%clk 0:02:57.3]} 2. d4 {[%clk 0:03:00.3]}
2... g6 {[%clk 0:02:58.2]} 3. Nc3 {[%clk 0:02:55.4]} 3... Bg7 {[%clk 0:02:58.1]}
4. Nf3 {[%clk 0:02:52.7]} 4... d6 {[%clk 0:02:58.4]} 5. Bc4 {[%clk 0:02:48.9]}
5... Nf6 {[%clk 0:02:57.7]} 6. Qe2 {[%clk 0:02:49.2]} 6... O-O {[%clk
0:02:57.4]} 7. e5 {[%clk 0:02:48.4]} 7... Ne8 {[%clk 0:02:57]} 8. h4 {[%clk
0:02:38.3]} 8... Bg4 {[%clk 0:02:53.9]} 9. h5 {[%clk 0:02:36.5]} 9... d5 {[%clk
0:02:18.8]} 10. Bd3 {[%clk 0:02:09.5]} 10... Nc7 {[%clk 0:02:04.5]} 11. Rh4
{[%clk 0:01:47.1]} 11... Bxf3 {[%clk 0:01:46.6]} 12. Qxf3 {[%clk 0:01:46.7]}
12... Ne6 {[%clk 0:01:46.4]} 13. hxg6 {[%clk 0:01:42.2]} 13... hxg6 {[%clk
0:01:10.9]} 14. Qh3 {[%clk 0:01:42.3]} 14... Re8 {[%clk 0:01:10.2]} 15. Bxg6
{[%clk 0:01:39.7]} 15... Nf8 {[%clk 0:01:02.2]} 16. Bf5 {[%clk 0:01:00.4]} 16...
e6 {[%clk 0:00:55.9]} 17. Bh7+ {[%clk 0:00:52.9]} 17... Nxh7 {[%clk 0:00:54.9]}
18. Rxh7 {[%clk 0:00:53.8]} 18... Nd7 {[%clk 0:00:38.2]} 19. Rxg7+ {[%clk
0:00:52.4]} 19... Kxg7 {[%clk 0:00:37.9]} 20. Qh6+ {[%clk 0:00:53.3]} 20... Kg8
{[%clk 0:00:38.1]} 21. Bg5 {[%clk 0:00:54.2]} 21... Re7 {[%clk 0:00:33]} 22. Bf6
{[%clk 0:00:51.1]} 22... Qf8 {[%clk 0:00:26.3]} 23. Qh8# {[%clk 0:00:50.5]} 1-0

[Event "*** Titled Tuesday Blitz"]
[Site "Chess.com"]
[Date "2020.10.27"]
[Round "2"]
[White "LawrenceTrent"]
[Black "krasavetc"]
[Result "0-1"]
[WhiteElo "2498"]
[BlackElo "2300"]
[TimeControl "180+1"]
[EndTime "10:16:25 PDT"]
[Termination "krasavetc won by resignation"]

1. d4 {[%clk 0:03:00.9]} 1... Nf6 {[%clk 0:02:59.5]} 2. Nc3 {[%clk 0:02:57.2]}
2... e6 {[%clk 0:02:59.7]} 3. e4 {[%clk 0:02:53.5]} 3... d5 {[%clk 0:02:59.4]}
4. Bg5 {[%clk 0:02:51.9]} 4... Be7 {[%clk 0:02:59.1]} 5. e5 {[%clk 0:02:51.7]}
5... Nfd7 {[%clk 0:02:59.3]} 6. h4 {[%clk 0:02:52.4]} 6... h6 {[%clk 0:02:58.9]}
7. Bxe7 {[%clk 0:02:51.3]} 7... Qxe7 {[%clk 0:02:59.3]} 8. Qg4 {[%clk
0:02:51.8]} 8... O-O {[%clk 0:02:58.7]} 9. Nf3 {[%clk 0:02:48.4]} 9... c5 {[%clk
0:02:58.5]} 10. Nb5 {[%clk 0:02:41.6]} 10... cxd4 {[%clk 0:02:45.7]} 11. O-O-O
{[%clk 0:02:41.1]} 11... Nc6 {[%clk 0:02:44.6]} 12. Qg3 {[%clk 0:02:34.5]} 12...
Qc5 {[%clk 0:02:38.8]} 13. Nbxd4 {[%clk 0:02:33.6]} 13... Ndxe5 {[%clk 0:02:33]}
14. c3 {[%clk 0:02:13.3]} 14... Nxf3 {[%clk 0:02:23.3]} 15. gxf3 {[%clk
0:02:11.1]} 15... e5 {[%clk 0:02:19.2]} 16. Rg1 {[%clk 0:02:09]} 16... g6 {[%clk
0:02:16.8]} 17. Bd3 {[%clk 0:02:08.4]} 17... Nxd4 {[%clk 0:02:13.2]} 18. Kb1
{[%clk 0:01:56.2]} 18... Nf5 {[%clk 0:02:11.2]} 19. Qxe5 {[%clk 0:01:53]} 19...
Kh7 {[%clk 0:01:56.4]} 20. h5 {[%clk 0:01:52.4]} 20... Qd6 {[%clk 0:01:47.1]}
21. Qe2 {[%clk 0:01:50.1]} 21... Bd7 {[%clk 0:01:43.5]} 22. Qd2 {[%clk
0:01:44.2]} 22... Rae8 {[%clk 0:01:32.3]} 23. Ka1 {[%clk 0:01:39.3]} 23... g5
{[%clk 0:01:31.4]} 24. Qc2 {[%clk 0:01:35.9]} 24... Qf4 {[%clk 0:01:28.3]} 25.
Rg4 {[%clk 0:00:52.1]} 25... Qxf3 {[%clk 0:01:25.7]} 26. Rdg1 {[%clk 0:00:53]}
26... Re5 {[%clk 0:01:15.4]} 27. a3 {[%clk 0:00:51.6]} 27... Kg7 {[%clk
0:01:13.7]} 28. Qc1 {[%clk 0:00:49.9]} 28... Rfe8 {[%clk 0:01:12.2]} 29. Rxg5+
{[%clk 0:00:49.9]} 29... hxg5 {[%clk 0:01:09.2]} 30. Qxg5+ {[%clk 0:00:50.8]}
30... Kf8 {[%clk 0:01:09]} 31. h6 {[%clk 0:00:46.9]} 31... Re1+ {[%clk
0:01:04.7]} 32. Rxe1 {[%clk 0:00:46.7]} 32... Rxe1+ {[%clk 0:01:05.6]} 33. Ka2
{[%clk 0:00:47.2]} 33... Qxd3 {[%clk 0:01:01]} 34. Qd8+ {[%clk 0:00:43.4]} 34...
Be8 {[%clk 0:01:00.4]} 0-1

[Event "*** Titled Tuesday Blitz"]
[Site "Chess.com"]
[Date "2020.10.27"]
[Round "2"]
[White "bazar-wokzal"]
[Black "Marina_Chess_Rus"]
[Result "1-0"]
[WhiteElo "2491"]
[BlackElo "2280"]
[TimeControl "180+1"]
[EndTime "10:16:27 PDT"]
[Termination "bazar-wokzal won on time"]

1. e4 {[%clk 0:02:59.8]} 1... e6 {[%clk 0:02:59.4]} 2. d4 {[%clk 0:02:59.6]}
2... d5 {[%clk 0:02:58.1]} 3. exd5 {[%clk 0:02:59.5]} 3... exd5 {[%clk
0:02:57.2]} 4. Nf3 {[%clk 0:02:59.2]} 4... Bd6 {[%clk 0:02:56.9]} 5. c4 {[%clk
0:02:58.8]} 5... c6 {[%clk 0:02:56.5]} 6. Bd3 {[%clk 0:02:58.3]} 6... Ne7 {[%clk
0:02:53.8]} 7. O-O {[%clk 0:02:54.5]} 7... O-O {[%clk 0:02:46.8]} 8. Nc3 {[%clk
0:02:53.9]} 8... dxc4 {[%clk 0:02:33.2]} 9. Bxc4 {[%clk 0:02:53.7]} 9... Bf5
{[%clk 0:02:28]} 10. Ne5 {[%clk 0:02:47.8]} 10... Nd7 {[%clk 0:02:16.4]} 11. f4
{[%clk 0:02:47.5]} 11... Nb6 {[%clk 0:01:56.6]} 12. Bb3 {[%clk 0:02:46.8]} 12...
Ned5 {[%clk 0:01:53.8]} 13. g4 {[%clk 0:02:38.2]} 13... Bd7 {[%clk 0:01:50.3]}
14. Qf3 {[%clk 0:02:31.6]} 14... Nxc3 {[%clk 0:01:01.7]} 15. bxc3 {[%clk
0:02:31.2]} 15... Be6 {[%clk 0:00:55.1]} 16. Bc2 {[%clk 0:02:14]} 16... f6
{[%clk 0:00:53.4]} 17. Qh3 {[%clk 0:02:05.6]} 17... g6 {[%clk 0:00:43.5]} 18.
Nf3 {[%clk 0:01:39.9]} 18... Nd5 {[%clk 0:00:31]} 19. f5 {[%clk 0:01:36.9]}
19... Bf7 {[%clk 0:00:28.8]} 20. Bh6 {[%clk 0:01:30.7]} 20... Re8 {[%clk
0:00:27.4]} 21. fxg6 {[%clk 0:01:26.2]} 21... hxg6 {[%clk 0:00:27.2]} 22. Nh4
{[%clk 0:01:20.5]} 22... g5 {[%clk 0:00:17.3]} 23. Qd3 {[%clk 0:01:13.5]} 1-0

[Event "*** Titled Tuesday Blitz"]
[Site "Chess.com"]
[Date "2020.10.27"]
[Round "2"]
[White "Bwert2602"]
[Black "Brave_spirit12"]
[Result "0-1"]
[WhiteElo "2233"]
[BlackElo "2477"]
[TimeControl "180+1"]
[EndTime "10:16:28 PDT"]
[Termination "Brave_spirit12 won on time"]

1. e4 {[%clk 0:02:51]} 1... e6 {[%clk 0:02:59.1]} 2. d4 {[%clk 0:02:50.4]} 2...
d5 {[%clk 0:03:00]} 3. Nc3 {[%clk 0:02:50]} 3... Nf6 {[%clk 0:02:59.7]} 4. Bg5
{[%clk 0:02:44.2]} 4... Be7 {[%clk 0:02:58.9]} 5. Bxf6 {[%clk 0:02:36.8]} 5...
Bxf6 {[%clk 0:02:59.8]} 6. Nf3 {[%clk 0:02:36.6]} 6... c5 {[%clk 0:02:53.5]} 7.
e5 {[%clk 0:02:33.8]} 7... Be7 {[%clk 0:02:53.1]} 8. dxc5 {[%clk 0:02:30.2]}
8... Bxc5 {[%clk 0:02:52.5]} 9. Bd3 {[%clk 0:02:23.8]} 9... O-O {[%clk
0:02:48.2]} 10. h4 {[%clk 0:02:21.5]} 10... h6 {[%clk 0:02:45.8]} 11. Qe2 {[%clk
0:02:14.8]} 11... Nc6 {[%clk 0:02:42.4]} 12. O-O-O {[%clk 0:02:11.4]} 12... f6
{[%clk 0:02:42.1]} 13. exf6 {[%clk 0:01:59.1]} 13... Qxf6 {[%clk 0:02:43]} 14.
Kb1 {[%clk 0:01:48.7]} 14... Bd7 {[%clk 0:02:31.3]} 15. Ne4 {[%clk 0:01:40.8]}
15... dxe4 {[%clk 0:02:16.8]} 16. Qxe4 {[%clk 0:01:39.9]} 16... Rad8 {[%clk
0:01:46.2]} 17. Qh7+ {[%clk 0:00:38.1]} 17... Kf7 {[%clk 0:01:44.5]} 18. Rhe1
{[%clk 0:00:38]} 18... e5 {[%clk 0:01:10.2]} 19. Qe4 {[%clk 0:00:05.4]} 19...
Be6 {[%clk 0:01:08.1]} 0-1

[Event "*** Titled Tuesday Blitz"]
[Site "Chess.com"]
[Date "2020.10.27"]
[Round "2"]
[White "vladislavkovalev"]
[Black "FMJoseHerrera"]
[Result "1-0"]
[WhiteElo "2841"]
[BlackElo "2551"]
[TimeControl "180+1"]
[EndTime "10:16:34 PDT"]
[Termination "vladislavkovalev won by resignation"]

1. e4 {[%clk 0:03:00.9]} 1... c5 {[%clk 0:02:56.7]} 2. Be2 {[%clk 0:03:00.9]}
2... e6 {[%clk 0:02:55.4]} 3. d3 {[%clk 0:03:01.8]} 3... b6 {[%clk 0:02:55]} 4.
f4 {[%clk 0:03:02.5]} 4... Bb7 {[%clk 0:02:54.9]} 5. Nf3 {[%clk 0:03:03.4]} 5...
Qc7 {[%clk 0:02:54.9]} 6. c3 {[%clk 0:03:03.4]} 6... d6 {[%clk 0:02:55.2]} 7.
O-O {[%clk 0:03:03.4]} 7... Nd7 {[%clk 0:02:55.6]} 8. Be3 {[%clk 0:03:03.9]}
8... Ngf6 {[%clk 0:02:54]} 9. Kh1 {[%clk 0:03:04.6]} 9... h5 {[%clk 0:02:53.4]}
10. Nbd2 {[%clk 0:03:04.6]} 10... h4 {[%clk 0:02:53.2]} 11. Ng5 {[%clk
0:03:00.9]} 11... Be7 {[%clk 0:02:52.9]} 12. Bf3 {[%clk 0:02:58.2]} 12... g6
{[%clk 0:02:46.9]} 13. d4 {[%clk 0:02:50.6]} 13... Nh7 {[%clk 0:02:12.4]} 14.
Nh3 {[%clk 0:02:45.2]} 14... O-O-O {[%clk 0:02:04.1]} 15. a4 {[%clk 0:02:44.1]}
15... a6 {[%clk 0:01:57.1]} 16. b4 {[%clk 0:02:43.3]} 16... Rdg8 {[%clk
0:01:52.1]} 17. bxc5 {[%clk 0:02:37.3]} 17... dxc5 {[%clk 0:01:51.1]} 18. e5
{[%clk 0:02:36.1]} 18... g5 {[%clk 0:01:48.8]} 19. fxg5 {[%clk 0:02:37]} 19...
Nxg5 {[%clk 0:01:48.6]} 20. Bxg5 {[%clk 0:02:36.8]} 20... Bxg5 {[%clk
0:01:48.5]} 21. Bxb7+ {[%clk 0:02:36.4]} 21... Qxb7 {[%clk 0:01:47.6]} 22. Rxf7
{[%clk 0:02:33.5]} 22... Bh6 {[%clk 0:00:44.6]} 23. Nf3 {[%clk 0:02:28.1]} 23...
Rf8 {[%clk 0:00:44.7]} 24. Re7 {[%clk 0:02:14.6]} 24... Qd5 {[%clk 0:00:36.2]}
25. c4 {[%clk 0:02:10.2]} 25... Qe4 {[%clk 0:00:33.2]} 26. dxc5 {[%clk
0:01:54.2]} 26... Qc6 {[%clk 0:00:10.4]} 27. Qd6 {[%clk 0:01:46.8]} 27... Qxd6
{[%clk 0:00:10.3]} 28. cxd6 {[%clk 0:01:47.7]} 28... Rxf3 {[%clk 0:00:09.5]} 29.
gxf3 {[%clk 0:01:47.1]} 29... Nxe5 {[%clk 0:00:10.1]} 30. Rc7+ {[%clk
0:01:40.6]} 30... Kd8 {[%clk 0:00:10.1]} 31. Rb1 {[%clk 0:01:41.5]} 31... Be3
{[%clk 0:00:09]} 32. c5 {[%clk 0:01:39.7]} 32... Bxc5 {[%clk 0:00:09]} 33. Rxc5
{[%clk 0:01:39]} 33... bxc5 {[%clk 0:00:09.2]} 34. Rb8+ {[%clk 0:01:39.8]} 34...
Kd7 {[%clk 0:00:10.1]} 35. Rxh8 {[%clk 0:01:40.4]} 35... Kxd6 {[%clk 0:00:10.7]}
36. Kg2 {[%clk 0:01:38.3]} 36... c4 {[%clk 0:00:11.6]} 37. Nf2 {[%clk
0:01:31.3]} 37... c3 {[%clk 0:00:11.5]} 38. Ne4+ {[%clk 0:01:31.8]} 1-0

[Event "*** Titled Tuesday Blitz"]
[Site "Chess.com"]
[Date "2020.10.27"]
[Round "2"]
[White "ftorodent"]
[Black "BikingBrian"]
[Result "1-0"]
[WhiteElo "2668"]
[BlackElo "2265"]
[TimeControl "180+1"]
[EndTime "10:16:34 PDT"]
[Termination "ftorodent won by resignation"]

1. d4 {[%clk 0:03:00.9]} 1... Nf6 {[%clk 0:02:59.2]} 2. c4 {[%clk 0:03:00.9]}
2... g6 {[%clk 0:02:59.6]} 3. Nc3 {[%clk 0:03:00]} 3... Bg7 {[%clk 0:02:59.9]}
4. e4 {[%clk 0:02:59.6]} 4... d6 {[%clk 0:03:00.3]} 5. Nf3 {[%clk 0:03:00.1]}
5... O-O {[%clk 0:03:00.3]} 6. Be2 {[%clk 0:03:00.7]} 6... Na6 {[%clk
0:03:00.5]} 7. O-O {[%clk 0:02:59.7]} 7... e5 {[%clk 0:03:00.7]} 8. Be3 {[%clk
0:02:56.7]} 8... Ng4 {[%clk 0:03:00.3]} 9. Bg5 {[%clk 0:02:56.8]} 9... Qe8
{[%clk 0:03:00]} 10. h3 {[%clk 0:02:40.9]} 10... f6 {[%clk 0:02:36.2]} 11. Bc1
{[%clk 0:02:36.1]} 11... exd4 {[%clk 0:02:21.2]} 12. Nxd4 {[%clk 0:02:25]} 12...
Nh6 {[%clk 0:02:20.3]} 13. Re1 {[%clk 0:02:15.9]} 13... f5 {[%clk 0:02:08.4]}
14. exf5 {[%clk 0:02:07.1]} 14... Nxf5 {[%clk 0:02:07.7]} 15. Nxf5 {[%clk
0:02:06.9]} 15... Bxf5 {[%clk 0:02:07.5]} 16. Bf3 {[%clk 0:02:06.5]} 16... Qc8
{[%clk 0:02:03.7]} 17. Qd5+ {[%clk 0:02:03.6]} 17... Kh8 {[%clk 0:02:01.7]} 18.
Qxb7 {[%clk 0:02:03.1]} 18... Rb8 {[%clk 0:01:51.1]} 19. Qxc8 {[%clk 0:02:01.2]}
19... Rfxc8 {[%clk 0:01:47.1]} 20. Nd5 {[%clk 0:01:22.2]} 20... Nb4 {[%clk
0:01:37.4]} 21. Nxb4 {[%clk 0:01:09.5]} 21... Rxb4 {[%clk 0:01:38.3]} 22. g4
{[%clk 0:00:55.4]} 22... Bd3 {[%clk 0:01:32]} 23. Re7 {[%clk 0:00:49.3]} 23...
Rf8 {[%clk 0:01:17.7]} 24. Kg2 {[%clk 0:00:47.4]} 24... Rxc4 {[%clk 0:01:12]}
25. Be3 {[%clk 0:00:35.9]} 25... Bxb2 {[%clk 0:01:06]} 26. Rd1 {[%clk
0:00:35.9]} 26... Bc2 {[%clk 0:01:00.4]} 27. Rd2 {[%clk 0:00:35.7]} 27... Bc1
{[%clk 0:00:58.3]} 28. Rxc2 {[%clk 0:00:29.8]} 28... Rxc2 {[%clk 0:00:57.7]} 29.
Bd4+ {[%clk 0:00:30.1]} 29... Kg8 {[%clk 0:00:56.7]} 30. Rg7+ {[%clk 0:00:27.8]}
30... Kh8 {[%clk 0:00:55.4]} 31. Rxg6+ {[%clk 0:00:28]} 1-0

[Event "*** Titled Tuesday Blitz"]
[Site "Chess.com"]
[Date "2020.10.27"]
[Round "2"]
[White "Lenyas66"]
[Black "barbara25"]
[Result "1-0"]
[WhiteElo "2471"]
[BlackElo "2246"]
[TimeControl "180+1"]
[EndTime "10:16:34 PDT"]
[Termination "Lenyas66 won by resignation"]

1. e4 {[%clk 0:03:00.9]} 1... c5 {[%clk 0:02:59]} 2. Nf3 {[%clk 0:03:00.8]} 2...
d6 {[%clk 0:02:57.4]} 3. c3 {[%clk 0:03:00.1]} 3... Nf6 {[%clk 0:02:56.4]} 4.
Be2 {[%clk 0:03:00.2]} 4... Nc6 {[%clk 0:02:51.6]} 5. Qc2 {[%clk 0:02:59.6]}
5... g6 {[%clk 0:02:49.6]} 6. d4 {[%clk 0:02:56.5]} 6... cxd4 {[%clk 0:02:48.6]}
7. cxd4 {[%clk 0:02:56.7]} 7... Bg7 {[%clk 0:02:49.1]} 8. d5 {[%clk 0:02:47]}
8... Ne5 {[%clk 0:02:46.2]} 9. Nxe5 {[%clk 0:02:46.3]} 9... dxe5 {[%clk
0:02:45.9]} 10. O-O {[%clk 0:02:44.6]} 10... O-O {[%clk 0:02:45.1]} 11. Rd1
{[%clk 0:02:42.5]} 11... Bd7 {[%clk 0:02:44.6]} 12. Nc3 {[%clk 0:02:42.2]} 12...
a6 {[%clk 0:02:43.5]} 13. a4 {[%clk 0:02:40.4]} 13... Rc8 {[%clk 0:02:42.7]} 14.
Qb3 {[%clk 0:02:37.1]} 14... Qc7 {[%clk 0:02:38.7]} 15. Be3 {[%clk 0:02:36]}
15... Qb8 {[%clk 0:02:36.2]} 16. h3 {[%clk 0:02:33.6]} 16... e6 {[%clk
0:02:34.9]} 17. d6 {[%clk 0:02:29.7]} 17... Bc6 {[%clk 0:02:32.8]} 18. Bf3
{[%clk 0:02:21.8]} 18... Rcd8 {[%clk 0:02:30.5]} 19. Qa3 {[%clk 0:02:11.9]}
19... Rd7 {[%clk 0:02:29.6]} 20. Bb6 {[%clk 0:02:08.6]} 20... g5 {[%clk
0:02:23.5]} 21. b4 {[%clk 0:02:07.2]} 21... h5 {[%clk 0:02:15.2]} 22. b5 {[%clk
0:02:06.5]} 22... axb5 {[%clk 0:02:15.2]} 23. axb5 {[%clk 0:02:06.1]} 23... g4
{[%clk 0:02:15]} 24. bxc6 {[%clk 0:02:05.6]} 24... bxc6 {[%clk 0:02:14.7]} 25.
Bc7 {[%clk 0:02:05.9]} 25... Qb7 {[%clk 0:02:14.8]} 26. hxg4 {[%clk 0:02:01.7]}
26... hxg4 {[%clk 0:02:13.6]} 27. Rdb1 {[%clk 0:01:54.9]} 27... Qc8 {[%clk
0:02:11.9]} 28. Rb8 {[%clk 0:01:53.1]} 28... Qxb8 {[%clk 0:02:11.7]} 29. Bxb8
{[%clk 0:01:53.3]} 29... Rxb8 {[%clk 0:02:11.3]} 30. Be2 {[%clk 0:01:48]} 30...
Ne8 {[%clk 0:02:08.8]} 31. Rd1 {[%clk 0:01:39.1]} 31... Rbd8 {[%clk 0:02:02.9]}
32. Bxg4 {[%clk 0:01:36.1]} 32... Rxd6 {[%clk 0:02:02.2]} 33. Rxd6 {[%clk
0:01:35.2]} 33... Rxd6 {[%clk 0:02:01.8]} 34. Qa8 {[%clk 0:01:27.3]} 34... Kf8
{[%clk 0:02:00.8]} 35. Na4 {[%clk 0:01:24.8]} 35... Ke7 {[%clk 0:01:58.8]} 36.
Qa7+ {[%clk 0:01:21.5]} 36... Kf6 {[%clk 0:01:58.2]} 37. Nc5 {[%clk 0:01:18.8]}
37... Rd2 {[%clk 0:01:44.8]} 38. Qb8 {[%clk 0:00:59.9]} 38... Nd6 {[%clk
0:01:42.5]} 39. Qd8+ {[%clk 0:00:58.9]} 39... Kg6 {[%clk 0:01:41.1]} 40. Qh4
{[%clk 0:00:47.2]} 40... Bh6 {[%clk 0:01:35.4]} 41. Qh5+ {[%clk 0:00:45.9]}
41... Kg7 {[%clk 0:01:35]} 42. Qxe5+ {[%clk 0:00:45.8]} 42... Kg8 {[%clk
0:01:32.5]} 43. Nd7 {[%clk 0:00:43.2]} 43... Bg7 {[%clk 0:01:29.6]} 44. Nf6+
{[%clk 0:00:40.3]} 44... Kf8 {[%clk 0:01:29.1]} 45. Qg5 {[%clk 0:00:34.5]} 45...
c5 {[%clk 0:01:25.5]} 46. Qxd2 {[%clk 0:00:33.9]} 1-0

[Event "*** Titled Tuesday Blitz"]
[Site "Chess.com"]
[Date "2020.10.27"]
[Round "2"]
[White "Kaslask"]
[Black "bangchess21"]
[Result "0-1"]
[WhiteElo "2361"]
[BlackElo "2704"]
[TimeControl "180+1"]
[EndTime "10:16:39 PDT"]
[Termination "bangchess21 won by resignation"]

1. d4 {[%clk 0:03:00.9]} 1... Nf6 {[%clk 0:03:00]} 2. c4 {[%clk 0:03:00.6]} 2...
e6 {[%clk 0:03:00.6]} 3. Nf3 {[%clk 0:03:00.5]} 3... Bb4+ {[%clk 0:03:01.1]} 4.
Bd2 {[%clk 0:02:59.6]} 4... a5 {[%clk 0:03:01.2]} 5. g3 {[%clk 0:02:58.9]} 5...
Qe7 {[%clk 0:03:00.5]} 6. Bg2 {[%clk 0:02:58.5]} 6... d6 {[%clk 0:03:01.1]} 7.
O-O {[%clk 0:02:58]} 7... e5 {[%clk 0:03:01.7]} 8. Bc3 {[%clk 0:02:49.6]} 8...
e4 {[%clk 0:02:55.6]} 9. Ng5 {[%clk 0:02:44.2]} 9... h6 {[%clk 0:02:52.8]} 10.
Nh3 {[%clk 0:02:43.3]} 10... O-O {[%clk 0:02:44.8]} 11. a3 {[%clk 0:02:29.7]}
11... Bxc3 {[%clk 0:02:45.2]} 12. Nxc3 {[%clk 0:02:29.8]} 12... Bf5 {[%clk
0:02:45.8]} 13. Nf4 {[%clk 0:02:20]} 13... c6 {[%clk 0:02:45.8]} 14. e3 {[%clk
0:02:18.7]} 14... g5 {[%clk 0:02:40.8]} 15. Nfe2 {[%clk 0:02:15.7]} 15... Bg4
{[%clk 0:02:41.2]} 16. h3 {[%clk 0:02:13.3]} 16... Be6 {[%clk 0:02:23.6]} 17.
Kh2 {[%clk 0:02:10.8]} 17... Bxc4 {[%clk 0:02:22.8]} 18. b3 {[%clk 0:02:04.2]}
18... Be6 {[%clk 0:02:13.9]} 19. Nxe4 {[%clk 0:01:57.4]} 19... Nxe4 {[%clk
0:02:13.9]} 20. Bxe4 {[%clk 0:01:57.3]} 20... Bxh3 {[%clk 0:02:14.6]} 21. Qc2
{[%clk 0:01:47.8]} 21... Bxf1 {[%clk 0:02:12.5]} 22. Rxf1 {[%clk 0:01:47.2]}
22... Nd7 {[%clk 0:02:12.6]} 23. Kg2 {[%clk 0:01:45.7]} 23... Nf6 {[%clk
0:02:12.1]} 24. Bf5 {[%clk 0:01:44.6]} 24... Kg7 {[%clk 0:02:08]} 25. g4 {[%clk
0:01:38.4]} 25... Rh8 {[%clk 0:01:59.1]} 26. Ng3 {[%clk 0:01:35.3]} 26... h5
{[%clk 0:01:59.5]} 27. Bd3 {[%clk 0:00:43]} 27... Qe6 {[%clk 0:01:58.8]} 28. Bf5
{[%clk 0:00:29.8]} 28... Qd5+ {[%clk 0:01:49.3]} 29. e4 {[%clk 0:00:23.4]} 29...
Qxd4 {[%clk 0:01:49.4]} 30. Re1 {[%clk 0:00:23.3]} 30... h4 {[%clk 0:01:38.7]}
31. Ne2 {[%clk 0:00:17.9]} 31... h3+ {[%clk 0:01:39.1]} 32. Kh1 {[%clk
0:00:15.6]} 32... Qe5 {[%clk 0:01:40]} 33. Ng3 {[%clk 0:00:14.3]} 33... Rae8
{[%clk 0:01:33.2]} 34. Rd1 {[%clk 0:00:13.6]} 34... d5 {[%clk 0:01:32.1]} 35.
Qd2 {[%clk 0:00:13.5]} 35... Qf4 {[%clk 0:01:29.5]} 36. Qd4 {[%clk 0:00:13.3]}
36... Qf3+ {[%clk 0:01:21.8]} 0-1

[Event "*** Titled Tuesday Blitz"]
[Site "Chess.com"]
[Date "2020.10.27"]
[Round "2"]
[White "annamaja"]
[Black "Corre_por_tu_vida"]
[Result "0-1"]
[WhiteElo "2299"]
[BlackElo "2535"]
[TimeControl "180+1"]
[EndTime "10:16:40 PDT"]
[Termination "Corre_por_tu_vida won on time"]

1. e4 {[%clk 0:03:00.9]} 1... c5 {[%clk 0:02:59.2]} 2. Nf3 {[%clk 0:03:01]} 2...
Nc6 {[%clk 0:02:58.2]} 3. d4 {[%clk 0:03:01.6]} 3... cxd4 {[%clk 0:02:57.4]} 4.
Nxd4 {[%clk 0:03:02.5]} 4... Nf6 {[%clk 0:02:57.2]} 5. Nc3 {[%clk 0:03:02.4]}
5... e5 {[%clk 0:02:56.5]} 6. Ndb5 {[%clk 0:03:01.2]} 6... d6 {[%clk 0:02:55.9]}
7. Bg5 {[%clk 0:03:00.9]} 7... a6 {[%clk 0:02:55.8]} 8. Na3 {[%clk 0:03:01.5]}
8... b5 {[%clk 0:02:56.4]} 9. Nd5 {[%clk 0:03:02]} 9... Be7 {[%clk 0:02:55.5]}
10. Bxf6 {[%clk 0:02:59.4]} 10... Bxf6 {[%clk 0:02:56.4]} 11. c3 {[%clk
0:02:59.9]} 11... Bg5 {[%clk 0:02:56.2]} 12. Nc2 {[%clk 0:02:58.9]} 12... Ne7
{[%clk 0:02:56.2]} 13. h4 {[%clk 0:02:48.1]} 13... Bh6 {[%clk 0:02:55.1]} 14.
Nxe7 {[%clk 0:02:31.3]} 14... Qxe7 {[%clk 0:02:53.7]} 15. a4 {[%clk 0:02:32.1]}
15... bxa4 {[%clk 0:02:48.9]} 16. Rxa4 {[%clk 0:02:30]} 16... O-O {[%clk
0:02:47]} 17. Nb4 {[%clk 0:02:16.9]} 17... a5 {[%clk 0:02:42.5]} 18. Nd5 {[%clk
0:02:13.8]} 18... Qb7 {[%clk 0:02:41.5]} 19. b4 {[%clk 0:01:56]} 19... axb4
{[%clk 0:02:20.8]} 20. Rxb4 {[%clk 0:01:56.9]} 20... Qa7 {[%clk 0:02:19.5]} 21.
Bb5 {[%clk 0:01:41.2]} 21... Be6 {[%clk 0:02:16.1]} 22. O-O {[%clk 0:01:30.6]}
22... Qc5 {[%clk 0:02:10.7]} 23. Bc6 {[%clk 0:00:52.4]} 23... Rab8 {[%clk
0:01:53.7]} 24. Qd3 {[%clk 0:00:29.1]} 24... Kh8 {[%clk 0:01:49.1]} 25. Rc4
{[%clk 0:00:24.9]} 25... Qa3 {[%clk 0:01:41.5]} 26. Ra4 {[%clk 0:00:16.1]} 26...
Qb2 {[%clk 0:01:41.1]} 27. Nb4 {[%clk 0:00:12.7]} 27... Bd2 {[%clk 0:01:32.2]}
28. Rd1 {[%clk 0:00:04.4]} 28... Bxc3 {[%clk 0:01:30.5]} 29. Nc2 {[%clk
0:00:02.3]} 29... Bb3 {[%clk 0:01:20.4]} 30. Rc1 {[%clk 0:00:01.9]} 30... Bxa4
{[%clk 0:01:19]} 0-1